lending/lending_fUSD_20240207
["ID","MTS","AMOUNT","RATE_DAILY","PERIOD"]
[313410885,1707325846373,-317.45,0.000426,4]
[313410886,1707325846382,-317.45,0.000426,4]
[313410887,1707325846392,-317.45,0.000426,4]
[313410888,1707325846401,-317.45,0.000426,4]
[313410889,1707325846410,-317.45,0.000426,4]
[313410890,1707325846419,-317.45,0.000426,4]
[313410891,1707325846428,-317.45,0.000426,4]
[313410892,1707325846437,-317.45,0.000426,4]
[313410893,1707325846447,-317.45,0.000426,4]
[313410894,1707325846456,-317.45,0.000426,4]
[313410895,1707325846464,-317.45,0.000426,4]
[313410896,1707325846474,-317.45,0.000426,4]
[313410897,1707325846483,-317.45,0.000426,4]
[313410898,1707325846492,-317.45,0.000426,4]
[313410899,1707325846501,-500.0,0.00042626,30]
[313410900,1707325846510,-413.16305045,0.00042699,2]
[313410901,1707325846520,-300.02,0.00042699,2]
[313410902,1707325846529,-1000.0,0.000427,2]
[313410903,1707325846538,-200.0,0.000427,15]
[313410904,1707325846549,-150.0,0.000427,18]
[313410905,1707325846559,-152.15491724,0.00042705,2]
[313410906,1707325846570,-150.0,0.00042723,2]
[313410907,1707325846580,-150.0,0.00042727,2]
[313410908,1707325846590,-150.0,0.00042731,2]
[313410909,1707325846601,-1092.37026412,0.00042739,7]
[313410910,1707325846611,-150.0,0.00042762,2]
[313410911,1707325846621,-152.21873419,0.00042775,17]
[313410912,1707325846630,-200.0,0.000428,15]
[313410913,1707325846640,-150.0,0.00042828,2]
[313410914,1707325846650,-3147.37595595,0.00042895,120]
[313410915,1707325846660,-2165.81180284,0.00042896,30]
[313410916,1707325846670,-241.99204173,0.00042897,4]
[313410917,1707325846680,-215.28420849,0.00042897,4]
[313410918,1707325846690,-762.5997904,0.00042897,4]
[313410919,1707325846700,-231.04821633,0.00042897,4]
[313410920,1707325846709,-1127.72289789,0.00042897,15]
[313410921,1707325846719,-9956.17630976,0.00042897,4]
[313410922,1707325846728,-199.22366054,0.00042897,4]
[313410923,1707325846738,-1373.82333121,0.00042898,4]
[313410924,1707325846752,-849.81731875,0.00042898,4]
[313410925,1707325846761,-2033.96724201,0.00042898,4]
[313410926,1707325846770,-1728.15449778,0.000429,30]
[313410927,1707325846780,-300.0,0.000429,18]
[313410928,1707325846791,-90000.0,0.000429,30]
[313410929,1707325846801,-150.0,0.000429,17]
[313410931,1707325846810,-154.77779,0.000429,17]
[313410933,1707325846819,-1964.895122,0.000429,17]
[313410934,1707325846828,-209.0,0.000429,2]
[313410935,1707325846838,-200.0,0.000429,15]
[313410936,1707325846847,-217.0,0.000429,2]
[313410937,1707325846857,-5000.0,0.000429,6]
[313410939,1707325846866,-1500.0,0.000429,40]
[313410941,1707325846875,-13386.8406008,0.00042911,2]
[313410943,1707325846884,-13423.5021055,0.00042969,2]
[313410945,1707325846894,-13460.1636101,0.0004297,2]
[313410946,1707325846903,-13496.8251148,0.00042971,2]
[313410947,1707325846912,-13533.4866195,0.00042971,2]
[313410948,1707325846921,-13570.1481241,0.00042971,2]
[313410949,1707325846932,-500.0,0.00042973,30]
[313410950,1707325846942,-18508.23298261,0.00042998,4]
[313410951,1707325846955,-100000.0,0.00043,13]
[313410952,1707325846965,-810.17733342,0.00043,30]
[313410953,1707325846975,-351.09120098,0.00043,40]
[313410954,1707325846985,-300.0,0.00043,44]
[313410955,1707325846996,-48142.24,0.00043,30]
[313410956,1707325847007,-10000.0,0.00043,30]
[313410957,1707325847017,-10000.0,0.00043,30]
[313410958,1707325847028,-10000.0,0.00043,30]
[313410959,1707325847038,-4531.0,0.00043,30]
[313410960,1707325847047,-289.1082511,0.00043,120]
[313410961,1707325847057,-155.68447983,0.00043,4]
[313410962,1707325847066,-63014.91199085,0.00043,2]
[313410963,1707325847075,-1500.0,0.00043,7]
[313410964,1707325847085,-229.04890259,0.00043,2]
[313410965,1707325847095,-2000.0,0.00043,2]
[313410966,1707325847105,-2000.0,0.00043,2]
[313410967,1707325847114,-500.0,0.00043,14]
[313410968,1707325847124,-2341.56888599,0.00043,120]
[313410969,1707325847133,-151.0,0.00043,14]
[313410970,1707325847143,-151.0,0.00043,14]
[313410971,1707325847152,-151.0,0.00043,14]
[313410972,1707325847162,-151.0,0.00043,14]
[313410973,1707325847171,-265.203616,0.00043,14]
[313410974,1707325847180,-151.0,0.00043,14]
[313410975,1707325847190,-379.309798,0.00043,14]
[313410976,1707325847199,-379.309798,0.00043,14]
[313410977,1707325847208,-237.524391,0.00043,14]
[313410978,1707325847217,-151.0,0.00043,14]
[313410979,1707325847226,-237.524391,0.00043,14]
[313410980,1707325847234,-234.940869,0.00043,14]
[313410981,1707325847245,-234.940869,0.00043,14]
[313410982,1707325847254,-151.0,0.00043,14]
[313410983,1707325847264,-151.0,0.00043,14]
[313410984,1707325847273,-151.0,0.00043,14]
[313410985,1707325847282,-151.0,0.00043,14]
[313410986,1707325847291,-151.0,0.00043,14]
[313410987,1707325847301,-151.0,0.00043,14]
[313410988,1707325847310,-171.888791,0.00043,14]
[313410989,1707325847319,-152.298044,0.00043,14]
[313410990,1707325847328,-152.298044,0.00043,14]
[313410991,1707325847337,-298.126389,0.00043,14]
[313410992,1707325847346,-298.126389,0.00043,14]
[313410993,1707325847355,-151.0,0.00043,14]
[313410994,1707325847364,-151.0,0.00043,14]
[313410995,1707325847373,-151.0,0.00043,14]
[313410996,1707325847382,-294.534239,0.00043,14]
[313410997,1707325847391,-294.534239,0.00043,14]
[313410998,1707325847400,-543.674508,0.00043,14]
[313410999,1707325847410,-151.0,0.00043,14]
[313411000,1707325847419,-543.674508,0.00043,14]
[313411001,1707325847428,-151.0,0.00043,14]
[313411002,1707325847437,-151.0,0.00043,14]
[313411003,1707325847446,-151.0,0.00043,14]
[313411004,1707325847455,-151.0,0.00043,14]
[313411005,1707325847464,-151.0,0.00043,14]
[313411006,1707325847472,-261.973517,0.00043,14]
[313411007,1707325847481,-261.973517,0.00043,14]
[313411008,1707325847492,-151.0,0.00043,14]
[313411009,1707325847502,-151.0,0.00043,14]
[313411010,1707325847511,-151.0,0.00043,14]
[313411011,1707325847521,-151.0,0.00043,14]
[313411012,1707325847530,-151.0,0.00043,14]
[313411013,1707325847538,-151.0,0.00043,14]
[313411014,1707325847547,-813.537748,0.00043,14]
[313411015,1707325847557,-151.0,0.00043,14]
[313411016,1707325847566,-813.537748,0.00043,14]
[313411017,1707325847575,-174.0,0.00043,90]
[313411018,1707325847585,-590.28243361,0.0004307,30]
[313411019,1707325847594,-841.92511831,0.00043084,17]
[313411020,1707325847603,-478.98497743,0.00043084,11]
[313411021,1707325847612,-192.47302395,0.00043084,5]
[313411022,1707325847621,-306.22899426,0.00043085,2]
[313411023,1707325847630,-857.01088858,0.00043085,2]
[313411024,1707325847639,-172.40619888,0.00043085,36]
[313411025,1707325847648,-1079.36961414,0.00043085,2]
[313411026,1707325847658,-1913.456817,0.00043085,7]
[313411027,1707325847667,-6961.0,0.0004309,2]
[313411028,1707325847677,-465.0,0.0004309,3]
[313411029,1707325847686,-4649.0,0.0004309,2]
[313411030,1707325847695,-312.0,0.0004309,3]
[313411031,1707325847705,-152.38408237,0.00043139,30]
[313411032,1707325847714,-3000.0,0.0004315,17]
[313411033,1707325847723,-500.0,0.00043174,30]
[313411034,1707325847733,-151.0,0.00043179,14]
[313411035,1707325847744,-151.0,0.00043179,14]
[313411036,1707325847754,-151.0,0.00043179,14]
[313411037,1707325847764,-151.0,0.00043179,14]
[313411038,1707325847773,-151.0,0.00043179,14]
[313411039,1707325847782,-151.0,0.00043179,14]
[313411040,1707325847790,-151.0,0.00043179,14]
[313411041,1707325847800,-151.0,0.00043179,14]
[313411042,1707325847810,-151.0,0.00043179,14]
[313411043,1707325847819,-151.0,0.00043179,14]
[313411044,1707325847934,-151.0,0.00043179,14]
[313411045,1707325847944,-290.102348,0.00043179,14]
[313411046,1707325847955,-166.085792,0.00043179,14]
[313411047,1707325847964,-166.085792,0.00043179,14]
[313411048,1707325847974,-166.085792,0.00043179,14]
[313411049,1707325847983,-166.085792,0.00043179,14]
[313411050,1707325847994,-166.085792,0.00043179,14]
[313411051,1707325848005,-166.085792,0.00043179,14]
[313411052,1707325848014,-166.085792,0.00043179,14]
[313411053,1707325848024,-166.085792,0.00043179,14]
[313411054,1707325848033,-166.085792,0.00043179,14]
[313411055,1707325848042,-166.085792,0.00043179,14]
[313411056,1707325848051,-151.0,0.00043179,14]
[313411057,1707325848060,-151.0,0.00043179,14]
[313411058,1707325848069,-151.0,0.00043179,14]
[313411059,1707325848078,-151.0,0.00043179,14]
[313411060,1707325848088,-151.0,0.00043179,14]
[313411061,1707325848096,-151.0,0.00043179,14]
[313411062,1707325848106,-151.0,0.00043179,14]
[313411063,1707325848115,-151.0,0.00043179,14]
[313411064,1707325848124,-151.0,0.00043179,14]
[313411065,1707325848133,-151.0,0.00043179,14]
[313411066,1707325848142,-179.356212,0.00043179,14]
[313411067,1707325848151,-151.0,0.00043179,14]
[313411068,1707325848161,-350.245669,0.00043179,14]
[313411069,1707325848170,-350.245669,0.00043179,14]
[313411070,1707325848179,-334.25,0.00043183,2]
[313411071,1707325848188,-151.0,0.00043184,14]
[313411072,1707325848197,-151.0,0.00043184,14]
[313411073,1707325848207,-151.0,0.00043184,14]
[313411074,1707325848216,-151.0,0.00043184,14]
[313411075,1707325848225,-151.0,0.00043184,14]
[313411076,1707325848234,-151.0,0.00043184,14]
[313411077,1707325848245,-151.0,0.00043184,14]
[313411078,1707325848254,-151.0,0.00043184,14]
[313411079,1707325848264,-151.0,0.00043184,14]
[313411080,1707325848274,-245.885452,0.00043184,14]
[313411081,1707325848283,-151.0,0.00043184,14]
[313411082,1707325848292,-151.0,0.00043184,14]
[313411083,1707325848301,-158.895427,0.00043184,14]
[313411084,1707325848310,-379.309798,0.00043184,14]
[313411085,1707325848320,-379.309798,0.00043184,14]
[313411086,1707325848329,-379.309798,0.00043184,14]
[313411087,1707325848339,-379.309798,0.00043184,14]
[313411088,1707325848347,-379.309798,0.00043184,14]
[313411089,1707325848357,-379.309798,0.00043184,14]
[313411090,1707325848366,-379.309798,0.00043184,14]
[313411091,1707325848375,-379.309798,0.00043184,14]
[313411092,1707325848384,-237.524391,0.00043184,14]
[313411093,1707325848394,-237.524391,0.00043184,14]
[313411094,1707325848403,-237.524391,0.00043184,14]
[313411095,1707325848412,-237.524391,0.00043184,14]
[313411096,1707325848421,-151.0,0.00043184,14]
[313411097,1707325848430,-151.0,0.00043184,14]
[313411098,1707325848439,-151.0,0.00043184,14]
[313411099,1707325848449,-237.524391,0.00043184,14]
[313411100,1707325848458,-237.524391,0.00043184,14]
[313411101,1707325848468,-237.524391,0.00043184,14]
[313411102,1707325848477,-237.524391,0.00043184,14]
[313411103,1707325848486,-234.940869,0.00043184,14]
[313411104,1707325848496,-234.940869,0.00043184,14]
[313411105,1707325848506,-234.940869,0.00043184,14]
[313411106,1707325848515,-234.940869,0.00043184,14]
[313411107,1707325848525,-234.940869,0.00043184,14]
[313411108,1707325848534,-234.940869,0.00043184,14]
[313411109,1707325848543,-234.940869,0.00043184,14]
[313411110,1707325848552,-234.940869,0.00043184,14]
[313411111,1707325848561,-151.0,0.00043184,14]
[313411112,1707325848569,-151.0,0.00043184,14]
[313411113,1707325848578,-151.0,0.00043184,14]
[313411114,1707325848587,-151.0,0.00043184,14]
[313411115,1707325848596,-151.0,0.00043184,14]
[313411116,1707325848605,-151.0,0.00043184,14]
[313411117,1707325848615,-151.0,0.00043184,14]
[313411118,1707325848624,-151.0,0.00043184,14]
[313411119,1707325848633,-253.945064,0.00043184,14]
[313411120,1707325848642,-151.0,0.00043184,14]
[313411121,1707325848651,-151.0,0.00043184,14]
[313411122,1707325848661,-201.151819,0.00043184,14]
[313411123,1707325848670,-151.0,0.00043184,14]
[313411124,1707325848679,-151.0,0.00043184,14]
[313411125,1707325848688,-151.0,0.00043184,14]
[313411126,1707325848697,-151.0,0.00043184,14]
[313411127,1707325848706,-151.0,0.00043184,14]
[313411128,1707325848716,-151.0,0.00043184,14]
[313411129,1707325848727,-151.0,0.00043184,14]
[313411130,1707325848736,-152.298044,0.00043184,14]
[313411131,1707325848745,-152.298044,0.00043184,14]
[313411132,1707325848754,-152.298044,0.00043184,14]
[313411133,1707325848764,-152.298044,0.00043184,14]
[313411134,1707325848773,-152.298044,0.00043184,14]
[313411135,1707325848782,-152.298044,0.00043184,14]
[313411136,1707325848791,-152.298044,0.00043184,14]
[313411137,1707325848800,-152.298044,0.00043184,14]
[313411138,1707325848809,-298.126389,0.00043184,14]
[313411139,1707325848818,-298.126389,0.00043184,14]
[313411140,1707325848827,-298.126389,0.00043184,14]
[313411141,1707325848836,-298.126389,0.00043184,14]
[313411142,1707325848845,-298.126389,0.00043184,14]
[313411143,1707325848854,-298.126389,0.00043184,14]
[313411144,1707325848863,-298.126389,0.00043184,14]
[313411145,1707325848872,-298.126389,0.00043184,14]
[313411146,1707325848881,-151.0,0.00043184,14]
[313411147,1707325848890,-151.0,0.00043184,14]
[313411148,1707325848899,-151.0,0.00043184,14]
[313411149,1707325848909,-151.0,0.00043184,14]
[313411150,1707325848917,-151.0,0.00043184,14]
[313411151,1707325848927,-151.0,0.00043184,14]
[313411152,1707325848937,-151.0,0.00043184,14]
[313411153,1707325848949,-151.0,0.00043184,14]
[313411154,1707325848959,-151.0,0.00043184,14]
[313411155,1707325848969,-151.0,0.00043184,14]
[313411156,1707325848978,-151.0,0.00043184,14]
[313411157,1707325848988,-294.534239,0.00043184,14]
[313411158,1707325848998,-294.534239,0.00043184,14]
[313411159,1707325849007,-294.534239,0.00043184,14]
[313411160,1707325849016,-294.534239,0.00043184,14]
[313411161,1707325849027,-294.534239,0.00043184,14]
[313411162,1707325849036,-294.534239,0.00043184,14]
[313411163,1707325849045,-294.534239,0.00043184,14]
[313411164,1707325849054,-543.674508,0.00043184,14]
[313411165,1707325849063,-294.534239,0.00043184,14]
[313411166,1707325849072,-543.674508,0.00043184,14]
[313411167,1707325849081,-543.674508,0.00043184,14]
[313411168,1707325849090,-151.0,0.00043184,14]
[313411169,1707325849099,-543.674508,0.00043184,14]
[313411170,1707325849109,-151.0,0.00043184,14]
[313411171,1707325849118,-151.0,0.00043184,14]
[313411172,1707325849127,-151.0,0.00043184,14]
[313411173,1707325849136,-543.674508,0.00043184,14]
[313411174,1707325849146,-543.674508,0.00043184,14]
[313411175,1707325849155,-543.674508,0.00043184,14]
[313411176,1707325849164,-543.674508,0.00043184,14]
[313411177,1707325849173,-151.0,0.00043184,14]
[313411178,1707325849182,-151.0,0.00043184,14]
[313411179,1707325849192,-151.0,0.00043184,14]
[313411180,1707325849200,-151.0,0.00043184,14]
[313411181,1707325849209,-191.505284,0.00043184,14]
[313411182,1707325849218,-151.0,0.00043184,14]
[313411183,1707325849227,-151.0,0.00043184,14]
[313411184,1707325849236,-151.0,0.00043184,14]
[313411185,1707325849246,-151.0,0.00043184,14]
[313411186,1707325849255,-151.0,0.00043184,14]
[313411187,1707325849265,-151.0,0.00043184,14]
[313411188,1707325849274,-151.0,0.00043184,14]
[313411189,1707325849283,-291.03709,0.00043184,14]
[313411190,1707325849293,-151.0,0.00043184,14]
[313411191,1707325849302,-299.344649,0.00043184,14]
[313411192,1707325849311,-261.973517,0.00043184,14]
[313411193,1707325849321,-261.973517,0.00043184,14]
[313411194,1707325849330,-261.973517,0.00043184,14]
[313411195,1707325849340,-261.973517,0.00043184,14]
[313411196,1707325849349,-261.973517,0.00043184,14]
[313411197,1707325849360,-261.973517,0.00043184,14]
[313411198,1707325849369,-261.973517,0.00043184,14]
[313411199,1707325849379,-261.973517,0.00043184,14]
[313411200,1707325849388,-160.237017,0.00043184,14]
[313411201,1707325849397,-151.0,0.00043184,14]
[313411202,1707325849407,-151.0,0.00043184,14]
[313411203,1707325849416,-151.0,0.00043184,14]
[313411204,1707325849425,-151.0,0.00043184,14]
[313411205,1707325849434,-151.0,0.00043184,14]
[313411206,1707325849444,-151.0,0.00043184,14]
[313411207,1707325849453,-151.0,0.00043184,14]
[313411208,1707325849462,-192.292968,0.00043184,14]
[313411209,1707325849472,-151.0,0.00043184,14]
[313411210,1707325849482,-151.0,0.00043184,14]
[313411211,1707325849493,-151.0,0.00043184,14]
[313411212,1707325849503,-151.0,0.00043184,14]
[313411213,1707325849512,-151.0,0.00043184,14]
[313411214,1707325849521,-151.0,0.00043184,14]
[313411215,1707325849530,-151.0,0.00043184,14]
[313411216,1707325849540,-151.0,0.00043184,14]
[313411217,1707325849550,-151.0,0.00043184,14]
[313411218,1707325849661,-151.0,0.00043184,14]
[313411219,1707325849670,-690.89495615,0.00043184,2]
[313411220,1707325849680,-375.88168948,0.00043185,2]
[313411221,1707325849690,-3044.18166279,0.00043185,3]
[313411222,1707325849699,-151.0,0.00043185,14]
[313411223,1707325849708,-151.0,0.00043185,14]
[313411224,1707325849718,-151.0,0.00043185,14]
[313411225,1707325849727,-151.0,0.00043185,14]
[313411226,1707325849736,-151.0,0.00043185,14]
[313411227,1707325849749,-151.0,0.00043185,14]
[313411228,1707325849758,-151.0,0.00043185,14]
[313411229,1707325849767,-151.0,0.00043185,14]
[313411230,1707325849775,-151.0,0.00043185,14]
[313411231,1707325849785,-151.0,0.00043185,14]
[313411232,1707325849794,-151.0,0.00043185,14]
[313411233,1707325849812,-151.0,0.00043185,14]
[313411234,1707325849821,-151.0,0.00043185,14]
[313411235,1707325849830,-151.0,0.00043185,14]
[313411236,1707325849840,-151.0,0.00043185,14]
[313411237,1707325849849,-279.965883,0.00043185,14]
[313411238,1707325849859,-151.0,0.00043185,14]
[313411239,1707325849869,-151.0,0.00043185,14]
[313411240,1707325849879,-151.0,0.00043185,14]
[313411241,1707325849889,-151.0,0.00043185,14]
[313411242,1707325849900,-350.245669,0.00043185,14]
[313411243,1707325849910,-350.245669,0.00043185,14]
[313411244,1707325849919,-350.245669,0.00043185,14]
[313411245,1707325849929,-350.245669,0.00043185,14]
[313411246,1707325849938,-350.245669,0.00043185,14]
[313411247,1707325849950,-350.245669,0.00043185,14]
[313411248,1707325849960,-350.245669,0.00043185,14]
[313411249,1707325849969,-350.245669,0.00043185,14]
[313411250,1707325849981,-151.0,0.00043185,14]
[313411251,1707325849990,-151.0,0.00043185,14]
[313411252,1707325850004,-151.0,0.00043185,14]
[313411253,1707325850014,-151.0,0.00043185,14]
[313411254,1707325850026,-813.537748,0.00043185,14]
[313411255,1707325850035,-813.537748,0.00043185,14]
[313411256,1707325850046,-813.537748,0.00043185,14]
[313411257,1707325850056,-151.0,0.00043185,14]
[313411258,1707325850066,-813.537748,0.00043185,14]
[313411259,1707325850076,-151.0,0.00043185,14]
[313411260,1707325850088,-175.634701,0.00043185,14]
[313411261,1707325850098,-813.537748,0.00043185,14]
[313411262,1707325850108,-813.537748,0.00043185,14]
[313411263,1707325850117,-813.537748,0.00043185,14]
[313411264,1707325850129,-813.537748,0.00043185,14]
[313411265,1707325850138,-500.0,0.00043185,120]
[313411266,1707325850149,-1343.88449599,0.00043185,10]
[313411267,1707325850159,-300.0,0.00043185,40]
[313411268,1707325850169,-474.41198204,0.00043185,120]
[313411269,1707325850179,-3061.84807864,0.00043185,30]
[313411270,1707325850189,-5169.51961609,0.00043185,7]
[313411271,1707325850198,-457.94444842,0.00043185,120]
[313411272,1707325850207,-36987.3536278,0.00043185,7]
[313411273,1707325850216,-6859.53641986,0.00043185,30]
[313411274,1707325850226,-186.618352,0.00043185,60]
[313411275,1707325850236,-4029.18902351,0.00043185,120]
[313411276,1707325850248,-183.27095681,0.00043185,16]
[313411277,1707325850257,-1955.27435803,0.00043185,120]
[313411278,1707325850267,-220.75863239,0.00043185,90]
[313411279,1707325850276,-174.0,0.00043185,120]
[313411280,1707325850286,-6619.66070953,0.00043185,3]
[313411281,1707325850295,-184.08515011,0.00043185,120]
[313411282,1707325850305,-239.63575055,0.00043185,120]
[313411283,1707325850315,-266.46797299,0.00043185,120]
[313411284,1707325850324,-6180.48150677,0.00043185,120]
[313411285,1707325850334,-13496.07644523,0.00043185,30]
[313411286,1707325850343,-27870.87969939,0.00043185,30]
[313411287,1707325850352,-7395.5076265,0.00043185,30]
[313411288,1707325850362,-7149.78021315,0.00043185,30]
[313411289,1707325850372,-20099.89788838,0.00043185,30]
[313411290,1707325850381,-600000.0,0.00043185,60]
[313411291,1707325850390,-8033393.16049491,0.00043185,120]
[313411292,1707325850400,-237.75315683,0.00043185,60]
[313411293,1707325850409,-57766.68260552,0.00043185,30]
[313411294,1707325850419,-7700.0,0.00043185,120]
[313411295,1707325850428,-400.94911818,0.00043185,30]
[313411296,1707325850437,-200.0,0.00043185,30]
[313411297,1707325850446,-200.0,0.00043185,30]
[313411298,1707325850455,-200.0,0.00043185,30]
[313411299,1707325850465,-200.0,0.00043185,30]
[313411300,1707325850474,-200.0,0.00043185,30]
[313411301,1707325850483,-200.0,0.00043185,30]
[313411302,1707325850492,-212396.82,0.00043185,30]
[313411303,1707325850502,-200.0,0.00043185,30]
[313411304,1707325850510,-207.6,0.00043185,30]
[313411305,1707325850520,-159.90455169,0.00043185,30]
[313411306,1707325850529,-584.62117993,0.00043185,120]
[313411307,1707325850538,-20195.69934758,0.00043185,32]
[313411308,1707325850547,-5321.07857537,0.00043185,120]
[313411309,1707325850557,-4548.21868409,0.00043185,35]
[313411310,1707325850566,-3111.68911478,0.00043185,7]
[313411311,1707325850575,-242.41435492,0.00043185,7]
[313411312,1707325850585,-324.81887092,0.00043185,7]
[313411313,1707325850594,-1000000.0,0.00043185,60]
[313411314,1707325850604,-15000.0,0.00043185,50]
[313411315,1707325850613,-10948.66139851,0.00043185,60]
[313411316,1707325850622,-155.36886781,0.00043185,2]
[313411317,1707325850632,-1000.0,0.00043185,60]
[313411318,1707325850641,-1000.0,0.00043185,30]
[313411319,1707325850650,-1000.0,0.00043185,60]
[313411320,1707325850659,-1000.0,0.00043185,60]
[313411321,1707325850669,-1000.0,0.00043185,30]
[313411322,1707325850678,-39038.0305,0.00043185,7]
[313411323,1707325850688,-1000.0,0.00043185,30]
[313411324,1707325850697,-1994.88861109,0.00043185,30]
[313411325,1707325850706,-156819.31,0.00043185,30]
[313411326,1707325850716,-16813.0,0.00043185,60]
[313411327,1707325850727,-151.62751807,0.00043185,3]
[313411328,1707325850736,-76999.73088309,0.00043185,30]
[313411329,1707325850746,-1332.87152958,0.00043185,30]
[313411330,1707325850755,-11653.23330997,0.00043185,10]
[313411331,1707325850765,-50000.0,0.00043185,30]
[313411332,1707325850774,-29308.21952507,0.00043185,30]
[313411333,1707325850783,-50737.48402111,0.00043185,30]
[313411334,1707325850793,-32667.14381847,0.00043185,30]
[313411335,1707325850803,-10815.72162968,0.00043185,30]
[313411336,1707325850812,-33388.37625258,0.00043185,30]
[313411337,1707325850822,-3207.35446525,0.00043185,30]
[313411338,1707325850832,-28700.00113512,0.00043185,30]
[313411339,1707325850841,-21763.01834136,0.00043185,30]
[313411340,1707325850851,-46059.94725907,0.00043185,30]
[313411341,1707325850860,-42370.01912929,0.00043185,30]
[313411342,1707325850869,-64205.53433715,0.00043185,30]
[313411343,1707325850878,-262.59702684,0.00043185,14]
[313411344,1707325850888,-526.93357301,0.00043185,30]
[313411345,1707325850897,-2000.0,0.00043185,31]
[313411346,1707325850907,-1514.1085181,0.00043185,4]
[313411347,1707325850916,-354.51887223,0.00043185,2]
[313411348,1707325850926,-102713.89810977,0.00043185,120]
[313411349,1707325850935,-586.49159001,0.00043185,6]
[313411350,1707325850945,-822.0988684,0.00043185,120]
[313411351,1707325850956,-156.03373725,0.00043185,120]
[313411352,1707325850966,-50000.0,0.00043185,30]
[313411353,1707325850976,-575.78180581,0.00043185,2]
[313411354,1707325850986,-105063.91260564,0.00043185,2]
[313411355,1707325851000,-1683.51470438,0.00043185,2]
[313411356,1707325851009,-1722.933095,0.00043185,30]
[313411357,1707325851020,-8043.8859763,0.00043185,7]
[313411358,1707325851030,-1000.0,0.00043185,2]
[313411359,1707325851040,-1000.0,0.00043185,2]
[313411360,1707325851050,-1000.0,0.00043185,2]
[313411361,1707325851062,-1000.0,0.00043185,2]
[313411362,1707325851073,-1000.0,0.00043185,2]
[313411363,1707325851082,-1000.0,0.00043185,2]
[313411364,1707325851092,-1000.0,0.00043185,2]
[313411365,1707325851102,-1000.0,0.00043185,2]
[313411366,1707325851112,-1000.0,0.00043185,2]
[313411367,1707325851122,-1000.0,0.00043185,2]
[313411368,1707325851131,-1354.824656,0.00043185,2]
[313411369,1707325851141,-200.0,0.00043185,30]
[313411370,1707325851151,-380.582277,0.00043185,30]
[313411371,1707325851160,-159.48035278,0.00043185,60]
[313411372,1707325851171,-5319.16975029,0.00043185,2]
[313411373,1707325851181,-5319.16975029,0.00043185,2]
[313411374,1707325851191,-398.0,0.000432,7]
[313411375,1707325851202,-1752.27,0.000432,7]
[313411376,1707325851213,-249.75432652,0.000433,30]
[313411377,1707325851224,-7806.645713,0.000434,6]
[313411378,1707325851234,-150.0,0.00043403,2]
[313411379,1707325851352,-680.30140489,0.00043426,5]
[313411380,1707325851363,-300.0,0.000435,41]
[313411381,1707325851373,-1000.0,0.000436,11]
[313411382,1707325851384,-413.8478066,0.00043618,30]
[313411383,1707325851395,-211.62,0.00043677,2]
[313411384,1707325851405,-450.0,0.0004369,2]
[313411385,1707325851416,-500.0,0.00043722,30]
[313411386,1707325851426,-1000.0,0.00043784,15]
[313411387,1707325851436,-1000.0,0.00043784,15]
[313411388,1707325851447,-470.0,0.0004379,2]
[313411389,1707325851457,-480.0,0.0004379,2]
[313411390,1707325851467,-205.15030379,0.000438,30]